fUSD/lending_fUSD_20240526
["ID","MTS","AMOUNT","RATE_DAILY","PERIOD"]
[327979336,1716732725482,-192.0,0.00033406,30]
[327979337,1716732725494,-246.0,0.00033406,120]
[327979338,1716732725504,-16023.45928744,0.00033406,2]
[327979339,1716732725514,-527.76529367,0.00033406,4]
[327979340,1716732725523,-466.98334,0.00033406,30]
[327979341,1716732725532,-150.0,0.00033406,2]
[327979342,1716732725541,-150.0,0.00033406,2]
[327979343,1716732725551,-150.0,0.00033406,2]
[327979344,1716732725563,-150.0,0.00033406,2]
[327979345,1716732725573,-150.0,0.00033406,2]
[327979346,1716732725582,-171.078194,0.00033406,2]
[327979347,1716732725592,-7540.52298047,0.00033406,2]
[327979348,1716732725602,-10707.06410034,0.00033421,2]
[327979349,1716732725611,-977.98,0.00033424,5]
[327979350,1716732725620,-867.51,0.00033424,4]
[327979351,1716732725629,-613.37,0.00033424,4]
[327979352,1716732725639,-689.25,0.00033424,4]
[327979353,1716732725648,-912.17,0.00033424,4]
[327979354,1716732725657,-577.1,0.00033424,4]
[327979355,1716732725667,-3083.08,0.00033424,4]
[327979356,1716732725677,-691.79,0.00033424,4]
[327979357,1716732725686,-1003.57,0.00033424,4]
[327979358,1716732725696,-702.93,0.00033424,4]
[327979359,1716732725707,-587.38096614,0.00033424,4]
[327979360,1716732725718,-900.58,0.00033424,4]
[327979361,1716732725728,-891.34,0.00033424,4]
[327979362,1716732725738,-838.16,0.00033424,2]
[327979363,1716732725748,-615.98,0.00033424,4]
[327979364,1716732725758,-576.75,0.00033424,4]
[327979365,1716732725767,-767.17,0.00033424,4]
[327979366,1716732725776,-633.88,0.00033424,4]
[327979367,1716732725786,-758.6,0.00033424,4]
[327979368,1716732725796,-1363.1,0.00033424,4]
[327979369,1716732725805,-535.29,0.00033424,4]
[327979370,1716732725815,-471.43546782,0.00033424,4]
[327979371,1716732725824,-596.76,0.00033424,4]
[327979372,1716732725833,-555.5610365,0.00033424,4]
[327979373,1716732725843,-638.58,0.00033424,4]
[327979374,1716732725852,-813.06,0.00033424,4]
[327979375,1716732725862,-676.35,0.00033424,4]
[327979376,1716732725871,-1206.79,0.00033424,4]
[327979377,1716732725881,-758.9,0.00033424,4]
[327979378,1716732725891,-544.35,0.00033424,2]
[327979379,1716732725901,-607.01,0.00033424,4]
[327979380,1716732725910,-869.48,0.00033424,4]
[327979381,1716732725919,-436.48384478,0.00033424,4]
[327979382,1716732725928,-598.19,0.00033424,4]
[327979383,1716732725938,-501.39,0.00033424,4]
[327979384,1716732725947,-565.06,0.00033424,4]
[327979385,1716732725956,-536.08,0.00033424,4]
[327979386,1716732725966,-575.01,0.00033424,4]
[327979387,1716732725976,-500.0,0.00033424,4]
[327979388,1716732725985,-179.19,0.00033424,4]
[327979389,1716732725994,-664.28,0.00033424,4]
[327979390,1716732726004,-567.16189331,0.00033424,4]
[327979391,1716732726013,-1420.49,0.00033424,4]
[327979392,1716732726023,-911.95,0.00033424,4]
[327979393,1716732726033,-532.91,0.00033424,4]
[327979394,1716732726043,-876.64,0.00033424,4]
[327979395,1716732726053,-845.02,0.00033424,4]
[327979396,1716732726062,-1217.15,0.00033424,4]
[327979397,1716732726072,-1573.33,0.00033424,4]
[327979398,1716732726082,-1943.35,0.00033424,4]
[327979399,1716732726091,-647.0,0.00033424,4]
[327979400,1716732726101,-827.18,0.00033424,4]
[327979401,1716732726111,-525.9,0.00033424,4]
[327979402,1716732726120,-1647.19,0.00033424,4]
[327979403,1716732726130,-812.79,0.00033424,4]
[327979404,1716732726140,-656.92,0.00033424,4]
[327979405,1716732726150,-1479.16,0.00033424,4]
[327979406,1716732726161,-859.25,0.00033424,4]
[327979407,1716732726170,-705.7,0.00033424,4]
[327979408,1716732726179,-524.26,0.00033424,4]
[327979409,1716732726189,-852.83,0.00033424,4]
[327979410,1716732726199,-792.18,0.00033424,4]
[327979411,1716732726210,-2563.75,0.00033424,4]
[327979412,1716732726221,-9047.47,0.00033424,4]
[327979413,1716732726230,-500.0,0.00033424,4]
[327979414,1716732726239,-221.39916439,0.00033424,4]
[327979415,1716732726249,-543.61,0.00033424,4]
[327979416,1716732726260,-937.7,0.00033424,4]
[327979417,1716732726269,-657.54,0.00033424,4]
[327979418,1716732726279,-782.0,0.00033424,4]
[327979419,1716732726288,-1533.52,0.00033424,4]
[327979420,1716732726298,-1870.6,0.00033424,4]
[327979421,1716732726309,-662.47,0.00033424,4]
[327979422,1716732726320,-523.58,0.00033424,4]
[327979423,1716732726330,-611.87,0.00033424,4]
[327979424,1716732726339,-709.98,0.00033424,4]
[327979425,1716732726349,-604.89001802,0.00033424,4]
[327979426,1716732726358,-739.81,0.00033424,4]
[327979427,1716732726368,-366.45558609,0.00033424,4]
[327979428,1716732726379,-6199.76,0.00033424,4]
[327979429,1716732726388,-724.86,0.00033424,4]
[327979430,1716732726399,-1320.63,0.00033424,4]
[327979431,1716732726409,-200.28635945,0.00033424,4]
[327979432,1716732726419,-852.95,0.00033424,4]
[327979433,1716732726428,-2564.82,0.00033424,4]
[327979434,1716732726438,-818.52,0.00033424,4]
[327979435,1716732726448,-2538.12,0.00033424,4]
[327979436,1716732726458,-500.0,0.00033424,4]
[327979437,1716732726469,-598.56,0.00033424,4]
[327979438,1716732726481,-2937.07,0.00033424,4]
[327979439,1716732726495,-571.73,0.00033424,4]
[327979440,1716732726505,-1041.17,0.00033424,4]
[327979441,1716732726515,-656.51,0.00033424,4]
[327979442,1716732726527,-1310.5,0.00033424,4]
[327979443,1716732726537,-552.73,0.00033424,4]
[327979444,1716732726546,-967.98,0.00033424,4]
[327979445,1716732726555,-1148.48,0.00033424,4]
[327979446,1716732726566,-795.96,0.00033424,4]
[327979447,1716732726575,-678.18,0.00033424,4]
[327979448,1716732726585,-576.35,0.00033424,4]
[327979449,1716732726596,-606.32,0.00033424,4]
[327979450,1716732726606,-585.71,0.00033424,4]
[327979451,1716732726615,-1027.88,0.00033424,4]
[327979452,1716732726626,-2390.71,0.00033424,4]
[327979453,1716732726636,-720.94,0.00033424,4]
[327979454,1716732726646,-884.01,0.00033424,4]
[327979455,1716732726655,-571.26,0.00033424,4]
[327979456,1716732726665,-1408.04,0.00033424,4]
[327979457,1716732726675,-1085.42,0.00033424,4]
[327979458,1716732726684,-1268.26,0.00033424,4]
[327979459,1716732726694,-8694.34,0.00033424,4]
[327979460,1716732726703,-1268.05,0.00033424,4]
[327979461,1716732726712,-1448.06,0.00033424,4]
[327979462,1716732726722,-972.62,0.00033424,4]
[327979463,1716732726731,-573.16,0.00033424,4]
[327979464,1716732726741,-914.87,0.00033424,4]
[327979465,1716732726751,-3904.28,0.00033424,4]
[327979466,1716732726761,-1089.59,0.00033424,4]
[327979467,1716732726772,-885.34,0.00033424,4]
[327979468,1716732726782,-591.51,0.00033424,4]
[327979469,1716732726791,-420.63082951,0.00033424,4]
[327979470,1716732726802,-1079.94,0.00033424,4]
[327979471,1716732726812,-879.76,0.00033424,4]
[327979472,1716732726821,-1841.81,0.00033424,4]
[327979473,1716732726831,-1077.58,0.00033424,4]
[327979474,1716732726840,-625.43,0.00033424,4]
[327979475,1716732726849,-710.46,0.00033424,4]
[327979476,1716732726860,-568.85,0.00033424,4]
[327979477,1716732726869,-647.72,0.00033424,4]
[327979478,1716732726879,-869.84,0.00033424,4]
[327979479,1716732726889,-678.18,0.00033424,4]
[327979480,1716732726898,-717.42,0.00033424,4]
[327979481,1716732726907,-576.0,0.00033424,4]
[327979482,1716732726917,-1137.45,0.00033424,4]
[327979483,1716732726926,-623.77,0.00033424,4]
[327979484,1716732726936,-1101.55,0.00033424,4]
[327979485,1716732726947,-504.89,0.00033424,4]
[327979486,1716732726958,-570.33,0.00033424,4]
[327979487,1716732726968,-853.64,0.00033424,4]
[327979488,1716732726978,-1592.22,0.00033424,4]
[327979489,1716732726987,-1027.97,0.00033424,4]
[327979490,1716732726997,-1044.37,0.00033424,4]
[327979491,1716732727007,-1313.69,0.00033424,4]
[327979492,1716732727018,-624.18,0.00033424,4]
[327979493,1716732727027,-1190.26,0.00033424,4]
[327979494,1716732727037,-4137.91,0.00033424,4]
[327979495,1716732727046,-1036.79,0.00033424,4]
[327979496,1716732727057,-850.51,0.00033424,4]
[327979497,1716732727067,-1474.98,0.00033424,4]
[327979498,1716732727076,-916.61,0.00033424,4]
[327979499,1716732727086,-707.12,0.00033424,4]
[327979500,1716732727096,-2412.83,0.00033424,4]
[327979501,1716732727106,-687.58,0.00033424,4]
[327979502,1716732727116,-1038.84,0.00033424,4]
[327979503,1716732727126,-654.73,0.00033424,4]
[327979504,1716732727135,-928.91,0.00033424,4]
[327979505,1716732727145,-592.19,0.00033424,4]
[327979506,1716732727155,-502.52,0.00033424,4]
[327979507,1716732727164,-1244.5,0.00033424,4]
[327979508,1716732727174,-1000.0,0.00033497,14]
[327979509,1716732727183,-150.0,0.000335,10]
[327979510,1716732727192,-1141.73632892,0.000335,2]
[327979511,1716732727202,-152.29362824,0.000335,30]
[327979512,1716732727211,-12500.0,0.000335,5]
[327979513,1716732727221,-5908.34,0.000335,2]
[327979514,1716732727231,-5908.34,0.000335,2]
[327979515,1716732727240,-5908.34,0.000335,2]
[327979516,1716732727250,-5908.34,0.000335,2]
[327979517,1716732727259,-5908.34,0.000335,2]
[327979518,1716732727268,-5908.34,0.000335,2]
[327979519,1716732727278,-5908.34,0.000335,2]
[327979520,1716732727287,-5908.34,0.000335,2]
[327979521,1716732727297,-5908.34,0.000335,2]
[327979522,1716732727306,-5908.34,0.000335,2]
[327979523,1716732727315,-5908.34,0.000335,2]
[327979524,1716732727325,-5908.34,0.000335,2]
[327979525,1716732727334,-5908.34,0.000335,2]
[327979526,1716732727343,-5908.34,0.000335,2]
[327979527,1716732727354,-5908.34,0.000335,2]
[327979528,1716732727364,-5908.34,0.000335,2]
[327979529,1716732727374,-5908.34,0.000335,2]
[327979530,1716732727384,-7551.67,0.000335,2]
[327979531,1716732727394,-5908.34,0.000335,2]
[327979532,1716732727404,-7551.67,0.000335,2]
[327979533,1716732727414,-5908.34,0.000335,2]
[327979534,1716732727424,-7551.67,0.000335,2]
[327979535,1716732727434,-5908.34,0.000335,2]
[327979536,1716732727443,-7551.67,0.000335,2]
[327979537,1716732727453,-7551.67,0.000335,2]
[327979538,1716732727464,-7551.67,0.000335,2]
[327979539,1716732727474,-7551.67,0.000335,2]
[327979540,1716732727486,-7551.67,0.000335,2]
[327979541,1716732727500,-7551.67,0.000335,2]
[327979542,1716732727510,-7551.67,0.000335,2]
[327979543,1716732727520,-7551.67,0.000335,2]
[327979544,1716732727531,-7551.67,0.000335,2]
[327979545,1716732727540,-7551.67,0.000335,2]
[327979546,1716732727549,-7551.67,0.000335,2]
[327979547,1716732727560,-7551.67,0.000335,2]
[327979548,1716732727571,-7551.67,0.000335,2]
[327979549,1716732727580,-7551.67,0.000335,2]
[327979550,1716732727590,-7551.67,0.000335,2]
[327979551,1716732727599,-7551.67,0.000335,2]
[327979552,1716732727608,-7551.67,0.000335,2]
[327979553,1716732727618,-361.19631426,0.00033523,7]
[327979554,1716732727627,-254.6564948,0.00033547,7]
[327979555,1716732727636,-159.86601425,0.00033547,7]
[327979556,1716732727645,-265.32257592,0.00033547,7]
[327979557,1716732727655,-753.04240616,0.0003363,7]
[327979558,1716732727664,-232.27766012,0.0003363,7]
[327979559,1716732727673,-249.23485907,0.0003363,7]
[327979560,1716732727857,-2006.01668888,0.0003363,7]
[327979561,1716732727873,-569.48,0.00033642,30]
[327979562,1716732727883,-569.48,0.00033642,30]
[327979563,1716732727892,-605.0,0.00033668,3]
[327979564,1716732727901,-977.98,0.00033698,5]
[327979565,1716732727911,-867.54776392,0.00033698,4]
[327979566,1716732727921,-613.4619903,0.00033698,4]
[327979567,1716732727930,-689.30055869,0.00033698,4]
[327979568,1716732727940,-912.29298757,0.00033698,4]
[327979569,1716732727949,-577.1263234,0.00033698,4]
[327979570,1716732727959,-3083.23455984,0.00033698,4]
[327979571,1716732727969,-691.83358069,0.00033698,4]
[327979572,1716732727979,-1003.60604751,0.00033698,4]
[327979573,1716732727989,-703.1319461,0.00033698,4]
[327979574,1716732727999,-900.70102842,0.00033698,4]
[327979575,1716732728009,-891.39649578,0.00033698,4]
[327979576,1716732728018,-838.1761048,0.00033698,2]
[327979577,1716732728027,-616.00988142,0.00033698,4]
[327979578,1716732728037,-576.80661392,0.00033698,4]
[327979579,1716732728047,-767.31643699,0.00033698,4]
[327979580,1716732728056,-634.09836566,0.00033698,4]
[327979581,1716732728065,-758.82,0.00033698,4]
[327979582,1716732728074,-1363.25077753,0.00033698,4]
[327979583,1716732728083,-535.46582261,0.00033698,4]
[327979584,1716732728093,-596.95989553,0.00033698,4]
[327979585,1716732728102,-638.72179176,0.00033698,4]
[327979586,1716732728112,-813.16208622,0.00033698,4]
[327979587,1716732728121,-676.52791424,0.00033698,4]
[327979588,1716732728131,-1207.01115348,0.00033698,4]
[327979589,1716732728140,-759.01509106,0.00033698,4]
[327979590,1716732728149,-544.40410958,0.00033698,2]
[327979591,1716732728159,-607.10848313,0.00033698,4]
[327979592,1716732728168,-869.61374321,0.00033698,4]
[327979593,1716732728177,-598.36205343,0.00033698,4]
[327979594,1716732728187,-501.61913234,0.00033698,4]
[327979595,1716732728196,-565.2407172,0.00033698,4]
[327979596,1716732728205,-536.21327001,0.00033698,4]
[327979597,1716732728214,-575.02051853,0.00033698,4]
[327979598,1716732728223,-491.14103127,0.00033698,4]
[327979599,1716732728233,-179.32904495,0.00033698,4]
[327979600,1716732728243,-664.30048502,0.00033698,4]
[327979601,1716732728252,-1420.67656282,0.00033698,4]
[327979602,1716732728262,-912.17414647,0.00033698,4]
[327979603,1716732728272,-532.92,0.00033698,4]
[327979604,1716732728282,-876.68897573,0.00033698,4]
[327979605,1716732728291,-845.18908715,0.00033698,4]
[327979606,1716732728301,-1217.16373536,0.00033698,4]
[327979607,1716732728310,-1573.45421747,0.00033698,4]
[327979608,1716732728321,-1943.43601983,0.00033698,4]
[327979609,1716732728330,-647.18008625,0.00033698,4]
[327979610,1716732728340,-827.28478369,0.00033698,4]
[327979611,1716732728350,-526.00996999,0.00033698,4]
[327979612,1716732728360,-1647.41008249,0.00033698,4]
[327979613,1716732728369,-812.9071334,0.00033698,4]
[327979614,1716732728380,-657.15764985,0.00033698,4]
[327979615,1716732728390,-1479.37619674,0.00033698,4]
[327979616,1716732728400,-859.47418264,0.00033698,4]
[327979617,1716732728410,-705.81970826,0.00033698,4]
[327979618,1716732728420,-524.34186431,0.00033698,4]
[327979619,1716732728430,-853.0611805,0.00033698,4]
[327979620,1716732728439,-792.40437857,0.00033698,4]
[327979621,1716732728449,-2563.9664,0.00033698,4]
[327979622,1716732728459,-9047.70538432,0.00033698,4]
[327979623,1716732728470,-311.33495883,0.00033698,4]
[327979624,1716732728480,-543.69912656,0.00033698,4]
[327979625,1716732728495,-937.92212101,0.00033698,4]
[327979626,1716732728505,-657.77790315,0.00033698,4]
[327979627,1716732728514,-782.19004568,0.00033698,4]
[327979628,1716732728524,-1533.73279317,0.00033698,4]
[327979629,1716732728534,-1870.71919216,0.00033698,4]
[327979630,1716732728544,-662.59141387,0.00033698,4]
[327979631,1716732728554,-523.70945708,0.00033698,4]
[327979632,1716732728564,-611.88434275,0.00033698,4]
[327979633,1716732728574,-710.18261575,0.00033698,4]
[327979634,1716732728584,-739.89929875,0.00033698,4]
[327979635,1716732728594,-6199.87134679,0.00033698,4]
[327979636,1716732728604,-725.06068765,0.00033698,4]
[327979637,1716732728613,-1320.85312475,0.00033698,4]
[327979638,1716732728622,-853.14329512,0.00033698,4]
[327979639,1716732728631,-2565.00575435,0.00033698,4]
[327979640,1716732728640,-818.54501501,0.00033698,4]
[327979641,1716732728650,-2538.30051662,0.00033698,4]
[327979642,1716732728659,-351.15920578,0.00033698,4]
[327979643,1716732728669,-598.64345925,0.00033698,4]
[327979644,1716732728679,-2937.10708672,0.00033698,4]
[327979645,1716732728688,-571.91976197,0.00033698,4]
[327979646,1716732728698,-1041.28726166,0.00033698,4]
[327979647,1716732728708,-656.59385916,0.00033698,4]
[327979648,1716732728718,-1310.63323067,0.00033698,4]
[327979649,1716732728727,-552.78814827,0.00033698,4]
[327979650,1716732728737,-968.17805023,0.00033698,4]
[327979651,1716732728747,-1148.56734503,0.00033698,4]
[327979652,1716732728756,-796.12388382,0.00033698,4]
[327979653,1716732728765,-678.22515967,0.00033698,4]
[327979654,1716732728775,-576.38159188,0.00033698,4]
[327979655,1716732728784,-606.38441454,0.00033698,4]
[327979656,1716732728794,-585.81594326,0.00033698,4]
[327979657,1716732728804,-1028.07859814,0.00033698,4]
[327979658,1716732728814,-2390.84883262,0.00033698,4]
[327979659,1716732728824,-721.05790527,0.00033698,4]
[327979660,1716732728833,-884.04929807,0.00033698,4]
[327979661,1716732728843,-571.37503845,0.00033698,4]
[327979662,1716732728852,-1408.14029396,0.00033698,4]
[327979663,1716732728862,-1085.49552687,0.00033698,4]
[327979664,1716732728871,-1268.43533478,0.00033698,4]
[327979665,1716732728881,-8694.50842288,0.00033698,4]
[327979666,1716732728891,-1268.06725559,0.00033698,4]
[327979667,1716732728902,-1448.06593715,0.00033698,4]
[327979668,1716732728911,-972.73774913,0.00033698,4]
[327979669,1716732728921,-573.31101565,0.00033698,4]
[327979670,1716732728930,-914.97091776,0.00033698,4]
[327979671,1716732728940,-3904.34536154,0.00033698,4]
[327979672,1716732728950,-1089.81572437,0.00033698,4]
[327979673,1716732728959,-885.56020184,0.00033698,4]
[327979674,1716732728970,-591.70998908,0.00033698,4]
[327979675,1716732728980,-1080.00263272,0.00033698,4]
[327979676,1716732728990,-879.96384275,0.00033698,4]
[327979677,1716732729000,-1841.86245879,0.00033698,4]
[327979678,1716732729010,-1077.81608564,0.00033698,4]
[327979679,1716732729019,-625.52311431,0.00033698,4]
[327979680,1716732729029,-710.60025051,0.00033698,4]
[327979681,1716732729039,-569.07705196,0.00033698,4]
[327979682,1716732729048,-647.93565416,0.00033698,4]
[327979683,1716732729058,-869.96336277,0.00033698,4]
[327979684,1716732729068,-678.2799693,0.00033698,4]
[327979685,1716732729077,-717.48131988,0.00033698,4]
[327979686,1716732729086,-576.03854395,0.00033698,4]
[327979687,1716732729096,-1137.52502271,0.00033698,4]
[327979688,1716732729106,-1101.58226526,0.00033698,4]
[327979689,1716732729116,-623.83118474,0.00033698,4]
[327979690,1716732729127,-505.12810172,0.00033698,4]
[327979691,1716732729137,-570.54101475,0.00033698,4]
[327979692,1716732729146,-853.83706215,0.00033698,4]
[327979693,1716732729157,-1592.36670601,0.00033698,4]
[327979694,1716732729167,-1028.1605972,0.00033698,4]
[327979695,1716732729177,-1044.41674543,0.00033698,4]
[327979696,1716732729188,-1313.82313434,0.00033698,4]
[327979697,1716732729198,-624.31043701,0.00033698,4]
[327979698,1716732729208,-1190.34378824,0.00033698,4]
[327979699,1716732729219,-4138.06129614,0.00033698,4]
[327979700,1716732729228,-1036.79288485,0.00033698,4]
[327979701,1716732729237,-850.61759202,0.00033698,4]
[327979702,1716732729247,-1475.03219072,0.00033698,4]
[327979703,1716732729257,-916.67386734,0.00033698,4]
[327979704,1716732729266,-707.28905168,0.00033698,4]
[327979705,1716732729276,-2412.90203849,0.00033698,4]
[327979706,1716732729286,-687.70893296,0.00033698,4]
[327979707,1716732729296,-1038.89999093,0.00033698,4]
[327979708,1716732729306,-654.94453879,0.00033698,4]
[327979709,1716732729316,-929.12947675,0.00033698,4]
[327979710,1716732729326,-592.21741719,0.00033698,4]
[327979711,1716732729337,-502.60242646,0.00033698,4]
[327979712,1716732729347,-305.99847588,0.000337,5]
[327979713,1716732729357,-1000.0,0.00033704,14]
[327979714,1716732729367,-150.64,0.00033759,2]
[327979715,1716732729377,-150.0,0.00033759,2]
[327979716,1716732729387,-150.0,0.00033759,2]
[327979717,1716732729396,-819.90339773,0.00033793,6]
[327979718,1716732729406,-150.0,0.000338,8]
[327979719,1716732729415,-302.23,0.00033863,2]
[327979720,1716732729425,-150.0,0.00033863,2]
[327979721,1716732729436,-150.0,0.00033863,2]
[327979722,1716732729446,-150.0,0.00033863,2]
[327979723,1716732729456,-2000.0,0.000339,11]
[327979724,1716732729466,-445.0,0.000339,23]
[327979725,1716732729476,-1000.0,0.00033911,14]
[327979726,1716732729491,-569.48,0.00033915,30]
[327979727,1716732729500,-569.48,0.00033915,30]
[327979728,1716732729510,-977.98,0.00033972,5]
[327979729,1716732729520,-753.04240616,0.00033984,7]
[327979730,1716732729531,-232.27766012,0.00033984,7]
[327979731,1716732729540,-249.23485907,0.00033984,7]
[327979732,1716732729551,-2006.01668888,0.00033984,7]
[327979733,1716732729563,-608.471,0.00033985,2]
[327979734,1716732729572,-1800.0,0.00034,35]
[327979735,1716732729582,-150.0,0.00034,2]
[327979736,1716732729591,-150.0,0.00034,10]
[327979737,1716732729601,-9900.0,0.00034,5]
[327979738,1716732729616,-500.0,0.00034,2]
[327979739,1716732729625,-165.0,0.00034,8]
[327979740,1716732729635,-1900.0,0.00034,10]
[327979741,1716732729645,-1000.0,0.00034,2]
[327979742,1716732729655,-5908.34,0.00034,2]
[327979743,1716732729664,-5908.34,0.00034,2]
[327979744,1716732729674,-5908.34,0.00034,2]
[327979745,1716732729684,-5908.34,0.00034,2]
[327979746,1716732729694,-5908.34,0.00034,2]
[327979747,1716732729703,-5908.34,0.00034,2]
[327979748,1716732729713,-5908.34,0.00034,2]
[327979749,1716732729724,-5908.34,0.00034,2]
[327979750,1716732729733,-5908.34,0.00034,2]
[327979751,1716732729743,-5908.34,0.00034,2]
[327979752,1716732729752,-5908.34,0.00034,2]
[327979753,1716732729762,-5908.34,0.00034,2]
[327979754,1716732729772,-5908.34,0.00034,2]
[327979755,1716732729781,-5908.34,0.00034,2]
[327979756,1716732729791,-5908.34,0.00034,2]
[327979757,1716732729800,-5908.34,0.00034,2]
[327979758,1716732729810,-5908.34,0.00034,2]
[327979759,1716732729819,-7551.67,0.00034,2]
[327979760,1716732729829,-5908.34,0.00034,2]
[327979761,1716732729838,-7551.67,0.00034,2]
[327979762,1716732729847,-5908.34,0.00034,2]
[327979763,1716732729856,-7551.67,0.00034,2]
[327979764,1716732729866,-5908.34,0.00034,2]
[327979765,1716732729876,-7551.67,0.00034,2]
[327979766,1716732729885,-7551.67,0.00034,2]
[327979767,1716732729895,-7551.67,0.00034,2]
[327979768,1716732729904,-7551.67,0.00034,2]
[327979769,1716732729914,-7551.67,0.00034,2]
[327979770,1716732729923,-7551.67,0.00034,2]
[327979771,1716732729933,-7551.67,0.00034,2]
[327979772,1716732729943,-7551.67,0.00034,2]
[327979773,1716732729953,-7551.67,0.00034,2]
[327979774,1716732729963,-7551.67,0.00034,2]
[327979775,1716732729973,-7551.67,0.00034,2]
[327979776,1716732729982,-7551.67,0.00034,2]
[327979777,1716732729992,-7551.67,0.00034,2]
[327979778,1716732730001,-7551.67,0.00034,2]
[327979779,1716732730012,-7551.67,0.00034,2]
[327979780,1716732730022,-7551.67,0.00034,2]
[327979781,1716732730031,-7551.67,0.00034,2]
[327979782,1716732730040,-546.83,0.0003405,2]
[327979783,1716732730050,-1000.0,0.00034117,14]
[327979784,1716732730059,-569.48,0.00034189,30]
[327979785,1716732730069,-569.48,0.00034189,30]
[327979786,1716732730078,-977.98,0.00034246,5]
[327979787,1716732730088,-1000.0,0.00034324,14]
[327979788,1716732730097,-753.04240616,0.00034338,7]
[327979789,1716732730107,-232.27766012,0.00034338,7]
[327979790,1716732730117,-249.23485907,0.00034338,7]
[327979791,1716732730127,-2006.01668888,0.00034338,7]
[327979792,1716732730137,-445.0,0.000344,23]
[327979793,1716732730146,-5908.34,0.000344,2]
[327979794,1716732730155,-5908.34,0.000344,2]
[327979795,1716732730165,-5908.34,0.000344,2]
[327979796,1716732730174,-5908.34,0.000344,2]
[327979797,1716732730184,-5908.34,0.000344,2]
[327979798,1716732730194,-5908.34,0.000344,2]
[327979799,1716732730204,-5908.34,0.000344,2]
[327979800,1716732730214,-5908.34,0.000344,2]
[327979801,1716732730224,-5908.34,0.000344,2]
[327979802,1716732730234,-5908.34,0.000344,2]
[327979803,1716732730243,-5908.34,0.000344,2]
[327979804,1716732730253,-5908.34,0.000344,2]
[327979805,1716732730262,-5908.34,0.000344,2]
[327979806,1716732730339,-5908.34,0.000344,2]
[327979807,1716732730349,-5908.34,0.000344,2]
[327979808,1716732730359,-5908.34,0.000344,2]
[327979809,1716732730368,-5908.34,0.000344,2]
[327979810,1716732730378,-7551.67,0.000344,2]
[327979811,1716732730388,-5908.34,0.000344,2]
[327979812,1716732730397,-7551.67,0.000344,2]
[327979813,1716732730406,-5908.34,0.000344,2]
[327979814,1716732730415,-7551.67,0.000344,2]
[327979815,1716732730424,-5908.34,0.000344,2]
[327979816,1716732730433,-7551.67,0.000344,2]
[327979817,1716732730443,-7551.67,0.000344,2]
[327979818,1716732730452,-7551.67,0.000344,2]
[327979819,1716732730461,-7551.67,0.000344,2]
[327979820,1716732730471,-7551.67,0.000344,2]
[327979821,1716732730481,-7551.67,0.000344,2]
[327979822,1716732730494,-7551.67,0.000344,2]
[327979823,1716732730503,-7551.67,0.000344,2]
[327979824,1716732730513,-7551.67,0.000344,2]
[327979825,1716732730523,-7551.67,0.000344,2]
[327979826,1716732730533,-7551.67,0.000344,2]
[327979827,1716732730543,-7551.67,0.000344,2]
[327979828,1716732730552,-7551.67,0.000344,2]
[327979829,1716732730562,-7551.67,0.000344,2]
[327979830,1716732730571,-7551.67,0.000344,2]
[327979831,1716732730581,-7551.67,0.000344,2]
[327979832,1716732730591,-7551.67,0.000344,2]
[327979833,1716732730600,-761.0,0.00034435,2]
[327979834,1716732730610,-612.0,0.00034435,2]
[327979835,1716732730619,-4467.5289054,0.0003444,4]